fUST/lending_fUST_20250720
["ID","MTS","AMOUNT","RATE_DAILY","PERIOD"]
[373339962,1752954643420,-460.0,0.00019996,2]
[373339964,1752954643430,-475.7,0.00019996,2]
[373339966,1752954643440,-460.0,0.00019996,2]
[373339968,1752954643450,-460.0,0.00019996,2]
[373339970,1752954643459,-1546.62,0.00019996,2]
[373339972,1752954643469,-1269.04,0.00019996,2]
[373339974,1752954643478,-477.57,0.00019997,2]
[373339976,1752954643487,-460.0,0.00019997,2]
[373339978,1752954643497,-498.45671776,0.00019997,2]
[373339980,1752954643508,-460.0,0.00019997,2]
[373339982,1752954643518,-460.0,0.00019997,2]
[373339984,1752954643529,-1205.45,0.00019997,2]
[373339986,1752954643539,-460.0,0.00019997,2]
[373339989,1752954643549,-748.13,0.00019997,2]
[373339992,1752954643559,-460.0,0.00019997,2]
[373339994,1752954643568,-738.18,0.00019997,2]
[373339996,1752954643582,-912.79,0.00019997,2]
[373339998,1752954643592,-460.0,0.00019997,2]
[373340000,1752954643602,-460.0,0.00019997,2]
[373340002,1752954643612,-460.0,0.00019997,2]
[373340004,1752954643622,-988.83,0.00019997,2]
[373340006,1752954643632,-460.0,0.00019998,2]
[373340008,1752954643641,-151.0,0.00019999,2]
[373340010,1752954643654,-151.0,0.00019999,2]
[373340012,1752954643665,-151.0,0.00019999,2]
[373340014,1752954643674,-14300.23978458,0.0002,2]
[373340017,1752954643684,-1000.0,0.00020036,2]
[373340018,1752954643693,-1081.53922489,0.00020083,2]
[373340020,1752954643703,-7987.75159264,0.00020107,2]
[373340023,1752954643712,-151.0,0.00020107,2]
[373340024,1752954643722,-311.226723,0.00020107,2]
[373340027,1752954643731,-311.226723,0.00020107,2]
[373340028,1752954643741,-151.0,0.00020126,2]
[373340030,1752954643750,-151.0,0.00020126,2]
[373340032,1752954643759,-151.0,0.00020126,2]
[373340034,1752954643769,-151.0,0.00020126,2]
[373340036,1752954643779,-333.772377,0.00020126,2]
[373340039,1752954643789,-333.772377,0.00020126,2]
[373340041,1752954643798,-151.0,0.00020127,2]
[373340042,1752954643807,-505.0,0.00020127,2]
[373340045,1752954643817,-220.44796763,0.00020127,2]
[373340047,1752954643826,-500.0,0.00020128,2]
[373340048,1752954643836,-500.0,0.0002013,2]
[373340050,1752954643845,-554.96,0.00020167,2]
[373340052,1752954643855,-460.0,0.00020167,2]
[373340055,1752954643865,-274.724787,0.00020187,2]
[373340057,1752954643874,-387.83084799,0.00020262,2]
[373340059,1752954643883,-1325.1,0.0002027,2]
[373340061,1752954643892,-1084.08,0.0002027,2]
[373340063,1752954643902,-460.0,0.0002027,2]
[373340065,1752954643911,-475.7,0.0002027,2]
[373340067,1752954643921,-151.0,0.0002027,2]
[373340069,1752954643930,-460.0,0.0002027,2]
[373340071,1752954643939,-460.0,0.0002027,2]
[373340073,1752954643949,-1546.62,0.0002027,2]
[373340075,1752954643958,-1269.04,0.0002027,2]
[373340077,1752954643968,-477.57,0.00020271,2]
[373340079,1752954643977,-460.0,0.00020271,2]
[373340081,1752954643987,-460.0,0.00020271,2]
[373340083,1752954643996,-460.0,0.00020271,2]
[373340085,1752954644006,-1205.45,0.00020271,2]
[373340087,1752954644016,-460.0,0.00020271,2]
[373340089,1752954644025,-748.13,0.00020271,2]
[373340091,1752954644035,-460.0,0.00020271,2]
[373340093,1752954644045,-738.18,0.00020271,2]
[373340095,1752954644054,-912.79,0.00020271,2]
[373340097,1752954644063,-460.0,0.00020271,2]
[373340099,1752954644073,-460.0,0.00020271,2]
[373340101,1752954644083,-460.0,0.00020271,2]
[373340103,1752954644092,-988.83,0.00020271,2]
[373340105,1752954644102,-228.527849,0.00020272,2]
[373340107,1752954644111,-228.527849,0.00020272,2]
[373340109,1752954644120,-460.0,0.00020272,2]
[373340111,1752954644129,-151.0,0.00020272,2]
[373340113,1752954644139,-151.0,0.00020272,2]
[373340115,1752954644149,-323.35842337,0.00020281,2]
[373340117,1752954644159,-214.52603969,0.00020314,3]
[373340119,1752954644168,-160.0,0.00020314,3]
[373340121,1752954644177,-7987.75159264,0.00020314,3]
[373340123,1752954644187,-12612.80205064,0.00020314,3]
[373340125,1752954644196,-476.34170116,0.00020314,3]
[373340127,1752954644206,-151.0,0.00020314,2]
[373340129,1752954644215,-306.0,0.00020384,2]
[373340131,1752954644225,-306.1586121,0.00020384,2]
[373340133,1752954644234,-151.0,0.00020401,2]
[373340134,1752954644243,-505.0,0.00020401,2]
[373340137,1752954644253,-500.0,0.00020402,2]
[373340139,1752954644262,-554.96,0.00020441,2]
[373340141,1752954644272,-460.0,0.00020441,2]
[373340143,1752954644281,-700.0,0.00020516,2]
[373340145,1752954644291,-151.0,0.00020516,2]
[373340147,1752954644300,-151.0,0.00020516,2]
[373340149,1752954644310,-151.0,0.00020516,2]
[373340151,1752954644319,-7987.75159264,0.00020521,3]
[373340153,1752954644329,-268.466191,0.00020521,2]
[373340155,1752954644339,-268.466191,0.00020521,2]
[373340157,1752954644348,-151.0,0.00020521,2]
[373340159,1752954644358,-942.059246,0.00020531,8]
[373340161,1752954644367,-1325.1,0.00020544,2]
[373340163,1752954644377,-1084.08,0.00020544,2]
[373340165,1752954644386,-460.0,0.00020544,2]
[373340167,1752954644395,-475.7,0.00020544,2]
[373340169,1752954644405,-151.0,0.00020544,2]
[373340171,1752954644414,-460.0,0.00020544,2]
[373340173,1752954644423,-1546.62,0.00020544,2]
[373340175,1752954644432,-1269.04,0.00020544,2]
[373340177,1752954644442,-477.57,0.00020545,2]
[373340179,1752954644451,-228.527849,0.00020545,2]
[373340181,1752954644460,-228.527849,0.00020545,2]
[373340182,1752954644470,-460.0,0.00020545,2]
[373340185,1752954644479,-460.0,0.00020545,2]
[373340187,1752954644489,-460.0,0.00020545,2]
[373340188,1752954644499,-1205.45,0.00020545,2]
[373340190,1752954644508,-460.0,0.00020545,2]
[373340192,1752954644517,-748.13,0.00020545,2]
[373340194,1752954644529,-460.0,0.00020545,2]
[373340196,1752954644539,-738.18,0.00020545,2]
[373340198,1752954644549,-912.79,0.00020545,2]
[373340200,1752954644558,-460.0,0.00020545,2]
[373340202,1752954644567,-460.0,0.00020545,2]
[373340204,1752954644579,-988.83,0.00020545,2]
[373340206,1752954644588,-460.0,0.00020546,2]
[373340209,1752954644598,-151.0,0.00020547,2]
[373340211,1752954644608,-151.0,0.00020547,2]
[373340213,1752954644618,-420.0,0.00020602,2]
[373340215,1752954644627,-1000.0,0.00020628,2]
[373340217,1752954644637,-384.47000196,0.00020639,2]
[373340219,1752954644646,-245.0,0.00020675,2]
[373340221,1752954644657,-505.0,0.00020675,2]
[373340223,1752954644668,-500.0,0.00020676,2]
[373340225,1752954644677,-151.0,0.00020676,2]
[373340227,1752954644687,-429.3901486,0.00020685,2]
[373340229,1752954644696,-2157.02,0.00020706,3]
[373340231,1752954644705,-1078.52,0.00020706,3]
[373340233,1752954644716,-539.26,0.00020706,3]
[373340235,1752954644725,-554.96,0.00020715,2]
[373340237,1752954644735,-460.0,0.00020715,2]
[373340239,1752954644744,-7987.75159264,0.00020728,3]
[373340241,1752954644754,-151.0,0.00020728,2]
[373340243,1752954644764,-151.0,0.00020728,2]
[373340245,1752954644775,-151.0,0.00020728,2]
[373340247,1752954644785,-1093.039854,0.00020728,2]
[373340249,1752954644794,-1093.039854,0.00020728,2]
[373340251,1752954644804,-311.226723,0.00020728,2]
[373340253,1752954644814,-311.226723,0.00020728,2]
[373340255,1752954644823,-152.423653,0.00020728,3]
[373340257,1752954644833,-1705.741,0.00020774,2]
[373340259,1752954644842,-178.336,0.00020774,2]
[373340261,1752954644852,-684.939,0.00020787,2]
[373340263,1752954644861,-2156.0,0.00020787,2]
[373340265,1752954644870,-968.0,0.00020787,2]
[373340267,1752954644879,-150.0,0.00020787,2]
[373340269,1752954644889,-226.665178,0.00020787,2]
[373340271,1752954644898,-151.0,0.00020787,2]
[373340273,1752954644907,-151.0,0.00020787,2]
[373340275,1752954644917,-1662.71,0.000208,2]
[373340277,1752954644926,-1081.53922489,0.00020816,2]
[373340279,1752954644935,-1325.1,0.00020818,2]
[373340281,1752954644945,-1084.08,0.00020818,2]
[373340283,1752954644954,-460.0,0.00020818,2]
[373340285,1752954644963,-475.7,0.00020818,2]
[373340287,1752954644972,-460.0,0.00020818,2]
[373340289,1752954644982,-1546.62,0.00020818,2]
[373340291,1752954644992,-1269.04,0.00020818,2]
[373340293,1752954645001,-477.57,0.00020819,2]
[373340295,1752954645010,-460.0,0.00020819,2]
[373340297,1752954645019,-519.84493682,0.00020819,2]
[373340299,1752954645029,-460.0,0.00020819,2]
[373340301,1752954645039,-1205.45,0.00020819,2]
[373340303,1752954645048,-460.0,0.00020819,2]
[373340305,1752954645057,-748.13,0.00020819,2]
[373340307,1752954645066,-460.0,0.00020819,2]
[373340309,1752954645076,-297.102138,0.00020819,2]
[373340311,1752954645085,-738.18,0.00020819,2]
[373340313,1752954645094,-912.79,0.00020819,2]
[373340315,1752954645104,-460.0,0.00020819,2]
[373340317,1752954645113,-460.0,0.00020819,2]
[373340319,1752954645122,-988.83,0.00020819,2]
[373340321,1752954645132,-411.33,0.0002082,2]
[373340323,1752954645141,-178.1115364,0.00020822,2]
[373340325,1752954645151,-577.1515091,0.00020822,2]
[373340327,1752954645160,-320.1890901,0.00020822,2]
[373340329,1752954645169,-152.423653,0.00020845,2]
[373340331,1752954645178,-160.0,0.00020888,2]
[373340333,1752954645188,-151.0,0.00020908,2]
[373340335,1752954645197,-151.0,0.00020908,2]
[373340337,1752954645206,-151.0,0.00020908,2]
[373340339,1752954645216,-151.0,0.00020908,2]
[373340341,1752954645225,-333.772377,0.00020908,2]
[373340343,1752954645235,-333.772377,0.00020908,2]
[373340345,1752954645244,-7987.75159264,0.00020934,4]
[373340347,1752954645253,-228.527849,0.00020935,2]
[373340349,1752954645263,-228.527849,0.00020935,2]
[373340351,1752954645272,-224.2,0.0002094,2]
[373340353,1752954645281,-151.0,0.00020947,2]
[373340355,1752954645291,-181.19525,0.00020947,2]
[373340357,1752954645300,-268.466191,0.00020948,2]
[373340359,1752954645309,-268.466191,0.00020948,2]
[373340361,1752954645319,-151.0,0.00020948,2]
[373340363,1752954645328,-505.0,0.00020949,2]
[373340365,1752954645338,-500.0,0.0002095,2]
[373340367,1752954645347,-554.96,0.00020989,2]
[373340369,1752954645357,-460.0,0.00020989,2]
[373340372,1752954645367,-151.0,0.0002099,2]
[373340374,1752954645376,-151.0,0.0002099,2]
[373340376,1752954645386,-151.0,0.00020998,2]
[373340378,1752954645395,-151.536565,0.00020998,2]
[373340380,1752954645404,-1093.039854,0.00020998,2]
[373340382,1752954645414,-1093.039854,0.00020998,2]
[373340384,1752954645423,-151.0,0.00020998,2]
[373340386,1752954645432,-216.14992921,0.00020999,2]
[373340388,1752954645442,-155324.02258365,0.00021,4]
[373340389,1752954645451,-151.0,0.00021,2]
[373340392,1752954645460,-151.0,0.00021,2]
[373340394,1752954645471,-151.0,0.00021,2]
[373340396,1752954645481,-151.0,0.00021,2]
[373340398,1752954645490,-3145.224935,0.00021,2]
[373340400,1752954645499,-151.0,0.00021,2]
[373340402,1752954645508,-497.768648,0.00021,2]
[373340404,1752954645517,-497.768648,0.00021,2]
[373340406,1752954645528,-151.0,0.00021,2]
[373340408,1752954645538,-151.0,0.00021,2]
[373340410,1752954645548,-151.0,0.00021,2]
[373340412,1752954645557,-151.0,0.00021,2]
[373340414,1752954645566,-151.0,0.00021,2]
[373340416,1752954645577,-151.0,0.00021,2]
[373340418,1752954645587,-151.0,0.00021,2]
[373340420,1752954645597,-151.0,0.00021,2]
[373340422,1752954645606,-1093.039854,0.00021,2]
[373340424,1752954645616,-1093.039854,0.00021,2]
[373340426,1752954645626,-311.226723,0.00021,2]
[373340428,1752954645635,-311.226723,0.00021,2]
[373340430,1752954645645,-151.0,0.00021,2]
[373340432,1752954645655,-151.0,0.00021,2]
[373340433,1752954645666,-249.426618,0.00021,2]
[373340436,1752954645676,-228.527849,0.00021,2]
[373340438,1752954645685,-228.527849,0.00021,2]
[373340440,1752954645694,-333.772377,0.00021,2]
[373340441,1752954645704,-333.772377,0.00021,2]
[373340444,1752954645713,-152.423653,0.00021,4]
[373340446,1752954645723,-268.466191,0.00021,2]
[373340448,1752954645732,-268.466191,0.00021,2]
[373340450,1752954645742,-199.227501,0.00021,2]
[373340452,1752954645752,-167.917216,0.00021,2]
[373340456,1752954645761,-577.1515091,0.00021014,2]
[373340458,1752954645772,-429.3901486,0.00021014,2]
[373340460,1752954645781,-429.3901486,0.00021014,2]
[373340462,1752954645790,-577.1515091,0.00021014,2]
[373340464,1752954645801,-429.3901486,0.00021014,2]
[373340466,1752954645810,-429.3901486,0.00021014,2]
[373340469,1752954645820,-429.3901486,0.00021014,2]
[373340472,1752954645829,-429.3901486,0.00021014,2]
[373340474,1752954645839,-1325.1,0.00021092,2]
[373340477,1752954645848,-1084.08,0.00021092,2]
[373340481,1752954645858,-460.0,0.00021092,2]
[373340484,1752954645869,-475.7,0.00021092,2]
[373340487,1752954645878,-460.0,0.00021092,2]
[373340489,1752954645887,-1546.62,0.00021092,2]
[373340492,1752954645897,-1269.04,0.00021092,2]
[373340495,1752954645906,-477.57,0.00021093,2]
[373340497,1752954645915,-460.0,0.00021093,2]
[373340500,1752954645924,-209.57,0.00021093,2]
[373340503,1752954645934,-1205.45,0.00021093,2]
[373340504,1752954645943,-460.0,0.00021093,2]
[373340507,1752954645952,-748.13,0.00021093,2]
[373340509,1752954645962,-460.0,0.00021093,2]
[373340512,1752954645971,-738.18,0.00021093,2]
[373340515,1752954645981,-912.79,0.00021093,2]
[373340518,1752954645990,-460.0,0.00021093,2]
[373340534,1752954646100,-460.0,0.00021093,2]
[373340536,1752954646111,-988.83,0.00021093,2]
[373340538,1752954646120,-7987.75159264,0.00021141,4]
[373340540,1752954646130,-577.1515091,0.00021151,2]
[373340542,1752954646139,-178.1115364,0.00021151,2]
[373340544,1752954646148,-429.3901486,0.00021151,2]
[373340546,1752954646158,-154.60703084,0.00021156,2]
[373340548,1752954646168,-159.1932489,0.00021205,2]
[373340550,1752954646177,-153.0,0.00021205,2]
[373340552,1752954646186,-153.0,0.00021205,2]
[373340554,1752954646199,-153.0,0.00021205,2]
[373340556,1752954646208,-153.0,0.00021205,2]
[373340558,1752954646218,-501.0,0.00021212,2]
[373340560,1752954646227,-505.0,0.00021223,2]
[373340562,1752954646237,-500.0,0.00021224,2]
[373340564,1752954646247,-153.0,0.00021233,2]
[373340566,1752954646256,-155.1266088,0.0002126,2]
[373340568,1752954646266,-577.1515091,0.0002126,2]
[373340570,1752954646277,-429.3901486,0.0002126,2]
[373340572,1752954646286,-178.1115364,0.0002126,2]
[373340574,1752954646296,-429.3901486,0.0002126,2]
[373340575,1752954646305,-178.1115364,0.0002126,2]
[373340576,1752954646314,-577.1515091,0.0002126,2]
[373340577,1752954646323,-429.3901486,0.0002126,2]
[373340578,1752954646332,-178.1115364,0.0002126,2]
[373340579,1752954646341,-429.3901486,0.0002126,2]
[373340580,1752954646351,-178.1115364,0.0002126,2]
[373340581,1752954646360,-577.1515091,0.0002126,2]
[373340582,1752954646369,-178.1115364,0.0002126,2]
[373340583,1752954646378,-429.3901486,0.0002126,2]
[373340584,1752954646387,-554.96,0.00021263,2]
[373340585,1752954646396,-460.0,0.00021263,2]
[373340586,1752954646406,-299.467832,0.00021348,2]
[373340587,1752954646416,-151.0,0.00021348,2]
[373340588,1752954646428,-228.527849,0.00021348,2]
[373340589,1752954646437,-228.527849,0.00021348,2]
[373340590,1752954646446,-7987.75159264,0.00021348,5]
[373340591,1752954646455,-1325.1,0.00021366,2]
[373340592,1752954646464,-1084.08,0.00021366,2]
[373340593,1752954646474,-460.0,0.00021366,2]
[373340594,1752954646483,-475.7,0.00021366,2]
[373340595,1752954646492,-602.64,0.00021366,2]
[373340596,1752954646501,-1546.62,0.00021366,2]
[373340597,1752954646510,-1269.04,0.00021366,2]
[373340598,1752954646519,-477.57,0.00021367,2]
[373340600,1752954646529,-460.0,0.00021367,2]
[373340602,1752954646540,-1205.45,0.00021367,2]
[373340604,1752954646549,-460.0,0.00021367,2]
[373340606,1752954646559,-748.13,0.00021367,2]
[373340608,1752954646569,-460.0,0.00021367,2]
[373340610,1752954646582,-688.689123,0.00021367,2]
[373340621,1752954646676,-49.490877,0.00021367,2]
[373340623,1752954646686,-773.1091228,0.00021367,2]
[373340628,1752954646719,-139.6808772,0.00021367,2]
[373340630,1752954646728,-460.0,0.00021367,2]
[373340632,1752954646738,-460.0,0.00021367,2]
[373340634,1752954646747,-988.83,0.00021367,2]
[373340636,1752954646756,-4625.52679483,0.00021384,2]
[373340637,1752954646765,-151.0,0.00021417,2]
[373340640,1752954646775,-151.0,0.00021421,2]
[373340642,1752954646785,-151.0,0.00021421,2]
[373340644,1752954646794,-151.0,0.00021421,2]
[373340646,1752954646803,-151.0,0.00021421,2]
[373340648,1752954646812,-1093.039854,0.00021421,2]
[373340650,1752954646822,-1093.039854,0.00021421,2]
[373340651,1752954646831,-836.0,0.00021436,2]
[373340654,1752954646841,-260.0,0.00021436,2]
[373340656,1752954646851,-155.07746113,0.00021479,2]
[373340658,1752954646862,-306.0,0.00021479,2]
[373340660,1752954646871,-268.466191,0.00021496,2]
[373340662,1752954646881,-268.466191,0.00021496,2]
[373340664,1752954646890,-505.0,0.00021497,2]
[373340666,1752954646899,-500.0,0.00021498,2]
[373340668,1752954646909,-311.226723,0.00021498,2]
[373340670,1752954646918,-311.226723,0.00021498,2]
[373340672,1752954646927,-4483.61412925,0.000215,2]
[373341737,1752955626257,260.988547,0.00013699,2]
[373341839,1752955832936,-336.41125175,0.00018798,2]
[373341840,1752955832945,-6668.4402182,0.00018801,2]
[373341841,1752955832955,-504.73741654,0.00018873,2]
[373341842,1752955832964,-500.0,0.00018873,2]
[373341843,1752955832974,-500.0,0.00018873,2]
[373341845,1752955832984,-500.0,0.00018873,2]
[373341847,1752955832993,-1200.0,0.00018895,2]
[373341849,1752955833003,-1200.0,0.00018896,2]
[373341851,1752955833012,-20588.60851358,0.00018897,2]
[373341852,1752955833021,-460.0,0.00018897,2]
[373341854,1752955833031,-460.0,0.00018897,2]
[373341856,1752955833042,-460.0,0.00018897,2]
[373341858,1752955833054,-460.0,0.00018897,2]
[373341860,1752955833065,-592.83,0.00018897,2]
[373341861,1752955833075,-460.0,0.00018897,2]
[373341862,1752955833085,-460.0,0.00018897,2]
[373341863,1752955833095,-460.0,0.00018897,2]
[373341864,1752955833105,-460.0,0.00018897,2]
[373341865,1752955833114,-1625.9,0.00018897,2]
[373341866,1752955833123,-460.0,0.00018898,2]
[373341867,1752955833134,-460.0,0.00018898,2]
[373341868,1752955833144,-460.0,0.00018898,2]
[373341869,1752955833154,-460.0,0.00018898,2]
[373341870,1752955833164,-460.0,0.00018898,2]
[373341871,1752955833174,-460.0,0.00018898,2]
[373341872,1752955833183,-461.09084379,0.00018898,2]
[373341873,1752955833193,-460.0,0.00018898,2]
[373341874,1752955833203,-460.0,0.00018898,2]
[373341875,1752955833212,-460.0,0.00018898,2]
[373341876,1752955833223,-460.0,0.00018898,2]
[373341877,1752955833233,-290.28139633,0.00018898,2]
[373341878,1752955833243,-462.37299387,0.00018898,2]
[373341879,1752955833252,-460.0,0.00018898,2]
[373341880,1752955833262,-460.0,0.00018898,2]
[373341881,1752955833271,-460.0,0.00018898,2]
[373341882,1752955833281,-460.0,0.00018898,2]
[373341883,1752955833293,-363.21626687,0.00018898,2]
[373341884,1752955833303,-460.0,0.00018898,2]
[373341885,1752955833312,-460.0,0.00018898,2]
[373341886,1752955833322,-460.0,0.00018898,2]
[373341887,1752955833332,-460.0,0.00018898,2]
[373341888,1752955833341,-460.0,0.00018898,2]
[373341889,1752955833350,-183.9488664,0.00018898,2]
[373341890,1752955833363,-276.0511336,0.00018898,2]
[373341891,1752955833373,-460.0,0.00018898,2]
[373341892,1752955833383,-460.0,0.00018898,2]
[373341893,1752955833392,-303.9488664,0.00018898,2]
[373341894,1752955833424,-156.0511336,0.00018898,2]
[373341895,1752955833434,-460.0,0.00018898,2]
[373341896,1752955833444,-460.0,0.00018898,2]
[373341897,1752955833453,-460.0,0.00018898,2]
[373341898,1752955833463,-460.0,0.00018898,2]
[373341899,1752955833472,-460.0,0.00018898,2]
[373341900,1752955833481,-460.0,0.00018898,2]
[373341901,1752955833492,-460.0,0.00018898,2]
[373341902,1752955833502,-460.0,0.00018898,2]
[373341903,1752955833512,-460.0,0.00018898,2]
[373341904,1752955833521,-460.0,0.00018898,2]
[373341905,1752955833531,-152.24635668,0.00018898,2]
[373341906,1752955833541,-460.0,0.00018898,2]
[373341907,1752955833551,-460.0,0.00018898,2]
[373341908,1752955833560,-228.29852862,0.00018898,2]
[373341909,1752955833570,-460.0,0.00018898,2]
[373341910,1752955833580,-460.0,0.00018898,2]
[373341911,1752955833590,-290.46359959,0.00018898,2]
[373341912,1752955833599,-460.0,0.00018898,2]
[373341913,1752955833609,-6.01378624,0.00018898,2]
[373341914,1752955833621,-453.98621376,0.00018898,2]
[373341915,1752955833631,-460.0,0.00018898,2]
[373341916,1752955833641,-460.0,0.00018898,2]
[373341917,1752955833651,-460.0,0.00018898,2]
[373341918,1752955833825,-343.99689212,0.00018898,2]
[373341931,1752955838425,-460.0,0.00018897,2]
[373341933,1752955838434,-116.00310788,0.00018898,2]
[373341934,1752955838443,-312.02226483,0.00018898,2]
[373341938,1752955838476,-147.97773517,0.00018898,2]
[373341940,1752955838486,-460.0,0.00018898,2]
[373341942,1752955838496,-460.0,0.00018898,2]
[373341943,1752955838505,-460.0,0.00018898,2]
[373341945,1752955838514,-460.0,0.00018898,2]
[373341947,1752955838524,-460.0,0.00018898,2]
[373341949,1752955838533,-460.0,0.00018898,2]
[373341951,1752955838545,-460.0,0.00018898,2]
[373341952,1752955838554,-480.89362168,0.00018898,2]
[373341954,1752955838564,-500.0,0.00018898,2]
[373341956,1752955838574,-522.01,0.00018898,2]
[373341957,1752955838583,-1233.84,0.00018898,2]
[373341959,1752955838593,-460.0,0.00018898,2]
[373341961,1752955838603,-460.0,0.00018898,2]
[373341963,1752955838613,-460.0,0.00018898,2]
[373341965,1752955838622,-460.0,0.00018898,2]
[373341967,1752955838631,-460.0,0.00018898,2]
[373341969,1752955838641,-460.0,0.00018898,2]
[373341971,1752955838651,-460.0,0.00018898,2]
[373341973,1752955838660,-460.0,0.00018898,2]
[373341975,1752955838669,-1107.54,0.00018898,2]
[373341977,1752955838678,-460.0,0.00018898,2]
[373341979,1752955838688,-460.0,0.00018898,2]
[373341981,1752955838698,-249.27,0.00018898,2]
[373341983,1752955838708,-460.0,0.00018898,2]
[373341985,1752955838718,-460.0,0.00018898,2]
[373341987,1752955838728,-460.0,0.00018898,2]
[373341989,1752955838737,-460.0,0.00018898,2]
[373341991,1752955838747,-460.0,0.00018898,2]
[373341993,1752955838756,-461.6212784,0.00018898,2]
[373341995,1752955838766,-748.13,0.00018898,2]
[373341997,1752955838776,-460.0,0.00018898,2]
[373341999,1752955838786,-442.57590828,0.00018898,2]
[373342001,1752955838796,-460.0,0.00018898,2]
[373342003,1752955838806,-460.0,0.00018898,2]
[373342005,1752955838815,-460.0,0.00018898,2]
[373342007,1752955838825,-460.0,0.00018898,2]
[373342009,1752955838834,-475.05,0.00018898,2]
[373342011,1752955838844,-460.0,0.00018898,2]
[373342013,1752955838853,-460.0,0.00018898,2]
[373342015,1752955838864,-460.0,0.00018898,2]
[373342017,1752955838873,-460.0,0.00018898,2]
[373342019,1752955838883,-460.0,0.00018898,2]
[373342021,1752955838893,-460.0,0.00018898,2]
[373342024,1752955838903,-460.0,0.00018898,2]
[373342026,1752955838912,-460.0,0.00018898,2]
[373342028,1752955838922,-460.0,0.00018898,2]
[373342030,1752955838931,-460.0,0.00018898,2]
[373342032,1752955838941,-460.0,0.00018898,2]
[373342033,1752955838951,-460.0,0.00018898,2]
[373342035,1752955838961,-460.0,0.00018898,2]
[373342036,1752955838970,-460.0,0.00018898,2]
[373342038,1752955838979,-460.0,0.00018898,2]
[373342040,1752955838989,-460.0,0.00018899,2]
[373342042,1752955838998,-462.00071874,0.00018899,2]
[373342044,1752955839007,-460.0,0.00018899,2]
[373342046,1752955839017,-460.0,0.00018899,2]
[373342048,1752955839026,-461.92584145,0.00018899,2]
[373342050,1752955839035,-460.0,0.00018899,2]
[373342052,1752955839045,-460.0,0.00018899,2]
[373342054,1752955839057,-461.77073188,0.00018899,2]
[373342056,1752955839067,-178.25556374,0.00018899,2]
[373342058,1752955839076,-462.20486985,0.00018899,2]
[373342060,1752955839086,-225.65865543,0.00018899,2]
[373342062,1752955839096,-263.57426695,0.00018899,2]
[373342064,1752955839106,-1000.0,0.00018899,2]
[373342066,1752955839115,-460.0,0.00018899,2]
[373342068,1752955839125,-460.0,0.00018899,2]
[373342070,1752955839134,-460.0,0.00018899,2]
[373342072,1752955839145,-460.0,0.00018899,2]
[373342074,1752955839154,-460.0,0.00018899,2]
[373342076,1752955839163,-1104.99,0.00018899,2]
[373342078,1752955839173,-532.66,0.00018899,2]
[373342080,1752955839182,-460.0,0.00018899,2]
[373342082,1752955839192,-874.76,0.00018899,2]
[373342084,1752955839201,-460.0,0.00018899,2]
[373342086,1752955839211,-460.0,0.00018899,2]
[373342088,1752955839220,-1508.43049333,0.000189,2]
[373342090,1752955839230,-1304.92,0.00019163,3]